fUST/lending_fUST_20250320
["ID","MTS","AMOUNT","RATE_DAILY","PERIOD"]
[356423512,1742433032515,-160.0,0.00039624,2]
[356423513,1742433032524,-207.0,0.00039673,2]
[356423514,1742433032534,-178.83793939,0.00039673,2]
[356423515,1742433032544,-178.83793939,0.00039699,2]
[356423516,1742433032553,-307.62792534,0.00039756,2]
[356423517,1742433032562,-600.0,0.00039756,2]
[356423518,1742433032572,-211.52906839,0.00039757,8]
[356423519,1742433032582,-495.62153183,0.00039769,31]
[356423520,1742433032591,-433.56975675,0.00039769,31]
[356423521,1742433032601,-384.78870974,0.0003977,2]
[356423522,1742433032610,-833.92477148,0.0003977,3]
[356423523,1742433032619,-192540.067764,0.0003977,3]
[356423524,1742433032629,-417.89091067,0.0003977,3]
[356423525,1742433032638,-500.0,0.00039773,5]
[356423526,1742433032648,-500.0,0.00039773,5]
[356423527,1742433032658,-500.0,0.00039773,5]
[356423528,1742433032667,-500.0,0.00039773,5]
[356423529,1742433032678,-500.0,0.00039773,5]
[356423530,1742433032687,-500.0,0.00039773,5]
[356423531,1742433032697,-500.0,0.00039773,5]
[356423532,1742433032706,-314.0327963,0.00039773,5]
[356423533,1742433032716,-999.0,0.0003978,120]
[356423534,1742433032725,-2222.20118979,0.0003978,2]
[356423535,1742433032735,-10986.56081343,0.0003978,2]
[356423536,1742433032744,-34567.09887393,0.0003978,2]
[356423537,1742433032756,-1181.75977639,0.0003978,2]
[356423538,1742433032767,-445.00743001,0.0003978,2]
[356423539,1742433033107,-3169.46096493,0.0003978,2]
[356423574,1742433043552,-23.99743297,0.0003978,2]
[356423575,1742433043614,-183.00256703,0.0003978,2]
[356423576,1742433043623,-151.68205493,0.0003978,2]
[356423822,1742433046369,-30358.59491272,0.0003978,2]
[356423829,1742433046427,-47953.24806069,0.0003978,2]
[356425351,1742434244470,-500.0,0.0003589,2]
[356425352,1742434244480,-2000.0,0.00036559,5]
[356425353,1742434244490,-211.52906839,0.000379,8]
[356425354,1742434244501,-500.0,0.000379,30]
[356425355,1742434244511,-120.2147552,0.00038,120]
[356425814,1742434258024,216.06750584,0.00029,7]
[356425815,1742434260358,216.06750584,0.00029,7]
[356425816,1742434798457,2000.0,0.00027,2]
[356425818,1742434861763,1835.0,0.00027,2]
[356425819,1742435174008,10000.0,0.00013,30]
[356425820,1742435180424,10000.0,0.00013,30]
[356425821,1742435188368,412.73,0.00013,30]
[356425822,1742435188393,9587.27,0.00013,30]
[356425823,1742435196493,10000.0,0.00013,10]
[356425824,1742435205133,-250.95475103,0.00028601,2]
[356425825,1742435209895,3517.0,0.00015175,120]
[356425828,1742435409965,503.22687407,0.00025247,2]
[356425910,1742435432932,-466.9113437,0.0002651,2]
[356425911,1742435432942,-587.3688226,0.00028601,2]
[356425914,1742435432953,-160.0,0.00034799,2]
[356425916,1742435432963,-627.21124031,0.00034901,2]
[356425918,1742435432975,-627.21124031,0.00035148,2]
[356425920,1742435432985,-627.21124031,0.00035391,2]
[356425922,1742435432995,-627.21124032,0.00035626,2]
[356425924,1742435433005,-2000.0,0.00035844,5]
[356425925,1742435433014,-500.0,0.0003589,2]
[356425927,1742435433023,-211.74194324,0.000359,7]
[356425929,1742435433033,-356.6561196,0.00036438,2]
[356425931,1742435433043,-324.2589781,0.00036438,2]
[356425933,1742435433053,-400.0,0.00036859,2]
[356425935,1742435433064,-500.0,0.0003695,90]
[356425937,1742435433074,-956.8503844,0.00037,120]
[356425939,1742435433083,-500.0,0.00037,120]
[356425941,1742435433093,-211.74194324,0.00037757,8]
[356425943,1742435433103,-500.0,0.000379,12]
[356425945,1742435433113,-206.68294135,0.00037999,2]
[356425947,1742435433123,-200.17466925,0.00037999,15]
[356425950,1742435433133,-500.0,0.00037999,15]
[356425952,1742435433143,-4988.18579182,0.00038,120]
[356425954,1742435433153,-310.0,0.00038,14]
[356425956,1742435433163,-513.25,0.00038,120]
[356425958,1742435433173,-4000.0,0.00038,50]
[356425960,1742435433184,-708.2872812,0.0003867,4]
[356425961,1742435433193,-500.0,0.00038769,60]
[356425963,1742435433203,-500.0,0.00038998,120]
[356425965,1742435433213,-503.07927667,0.00038998,2]
[356425968,1742435433223,-6737.05981107,0.00039,120]
[356425970,1742435433232,-326.0,0.00039445,5]
[356425972,1742435433243,-207.75660927,0.00039461,2]
[356425974,1742435433251,-1250.58677216,0.00039473,2]
[356425976,1742435433260,-207.75660925,0.00039488,2]
[356425978,1742435433269,-5000.0,0.000395,60]
[356425980,1742435433278,-207.75660925,0.00039515,2]
[356425982,1742435433288,-207.75660925,0.00039542,2]
[356425984,1742435433298,-933.48346346,0.00039547,2]
[356425986,1742435433307,-600.0,0.00039547,2]
[356425987,1742435433317,-241.43939787,0.00039559,15]
[356425989,1742435433326,-354.63485249,0.00039559,15]
[356425991,1742435433335,-1204.67598377,0.0003956,2]
[356425993,1742435433345,-5898.73843003,0.0003956,2]
[356425995,1742435433355,-417.89091067,0.0003956,3]
[356425997,1742435433365,-154526.756301,0.0003956,3]
[356425999,1742435433375,-833.92477148,0.0003956,3]
[356426001,1742435433385,-207.75660925,0.00039569,2]
[356426003,1742435433395,-222000.0,0.0003957,2]
[356426005,1742435433406,-504.50144831,0.00039573,5]
[356426007,1742435433415,-500.0,0.00039573,5]
[356426009,1742435433425,-500.0,0.00039573,5]
[356426011,1742435433434,-500.0,0.00039573,5]
[356426013,1742435433444,-622.2,0.00039602,2]
[356426015,1742435433454,-211.74194324,0.00039614,8]
[356426017,1742435433464,-778.33316048,0.00039657,2]
[356426019,1742435433473,-411577.88115769,0.00039659,14]
[356426022,1742435433486,-30438.57174231,0.00039659,14]
[356426024,1742435433495,-55461.4282577,0.0003966,3]
[356426026,1742435433507,-8617.75187906,0.0003966,3]
[356426381,1742435443814,-27.88386123,0.000378,120]
[356426523,1742435593870,150.0,0.000246,2]
[356426524,1742435744437,500.0,0.000246,2]
[356426525,1742435758587,150.0,0.00025999,2]
[356426526,1742435773808,350.0,0.00025999,2]
[356426527,1742435802314,200.0,0.00025999,2]
[356426528,1742435831522,42.50312593,0.00026,2]
[356426530,1742436371016,-642.17,0.00015952,5]
[356426531,1742436434575,-297.37638049,0.00015952,5]
[356426532,1742436441643,-482.17,0.00015952,5]
[356426533,1742436444283,-150.0,0.00015952,5]
[356426534,1742436451617,-187.25236954,0.00015952,5]
[356426535,1742436486162,-258.16253251,0.00015952,5]
[356426536,1742436542206,-150.0,0.0003,10]
[356426537,1742436548936,-156.01943339,0.00015952,5]
[356426538,1742436558114,-1049.22302951,0.00015952,5]
[356426539,1742436558137,-648.34432916,0.00017993,2]
[356426540,1742436558159,-300.0,0.00018174,2]
[356426541,1742436558181,-1.60748446,0.00018175,2]
[356426542,1742436563547,-174.89404634,0.00017993,2]
[356426543,1742436585184,-300.0,0.0003,10]
[356426588,1742436631817,-318.37775659,0.00017993,2]
[356426589,1742436631828,-498.39251554,0.00018175,2]
[356426590,1742436631838,-500.0,0.00018175,2]
[356426591,1742436631848,-500.0,0.00018175,2]
[356426592,1742436631857,-500.0,0.00018175,2]
[356426594,1742436631867,-500.0,0.00018175,2]
[356426596,1742436631877,-504.12410677,0.00018175,2]
[356426598,1742436631886,-503.558672,0.00018175,2]
[356426600,1742436631896,-150.0,0.000253,5]
[356426602,1742436631906,-289.0,0.000253,5]
[356426604,1742436631917,-578.0,0.000253,5]
[356426606,1742436631927,-1156.0,0.000253,5]
[356426608,1742436631937,-2312.0,0.000253,5]
[356426610,1742436631946,-2920.0,0.000253,5]
[356426612,1742436631956,-4500.0,0.000253,5]
[356426614,1742436631966,-4623.0,0.000253,5]
[356426616,1742436631975,-7142.0,0.000253,5]
[356426618,1742436631986,-211.74194324,0.000259,4]
[356426620,1742436631995,-9957.49687407,0.00026,2]
[356426622,1742436632006,-2867.70749584,0.0003,10]
[356426625,1742436632016,-211.74194324,0.0003165,6]
[356426628,1742436632026,-739.22825301,0.00033,10]
[356426630,1742436632036,-501.28279709,0.00033,10]
[356426632,1742436632045,-500.0,0.00033,10]
[356426634,1742436632055,-500.0,0.00033,10]
[356426636,1742436632065,-500.0,0.00033,10]
[356426638,1742436632077,-500.0,0.00033,10]
[356426641,1742436632088,-500.0,0.00033,10]
[356426644,1742436632097,-500.0,0.00033,10]
[356426646,1742436632107,-500.0,0.00033,10]
[356426648,1742436632117,-500.0,0.00033,10]
[356426650,1742436632126,-500.0,0.00033,10]
[356426652,1742436632136,-500.0,0.00033,10]
[356426654,1742436632145,-1228.8014765,0.00034588,5]
[356426656,1742436632155,-500.0,0.0003589,2]
[356426658,1742436632164,-177.38494749,0.000362,98]
[356426660,1742436632175,-211.74194324,0.000374,7]
[356426662,1742436632186,-202.75829294,0.000378,31]
[356426664,1742436632196,-195.0,0.000378,120]
[356426666,1742436632206,-237.29742118,0.00037999,20]
[356426668,1742436632216,-531.2154609,0.00038586,4]
[356426670,1742436632230,-1000.0,0.000392,30]
[356426672,1742436632239,-500.0,0.0003934,120]
[356426674,1742436632249,-1250.58677215,0.00039361,2]
[356426676,1742436632259,-195.0,0.000394,31]
[356426678,1742436632269,-500.0,0.00039449,120]
[356426680,1742436632279,-232.36617353,0.00039449,15]
[356426682,1742436632288,-248.24439674,0.00039449,15]
[356426684,1742436632297,-500.0,0.0003945,120]
[356426686,1742436632307,-417.94044697,0.0003945,3]
[356426688,1742436632317,-160.0,0.0003945,3]
[356426690,1742436632327,-33253.9866339,0.0003945,3]
[356426692,1742436632336,-510.72734943,0.0003945,3]
[356426694,1742436632346,-502.61586079,0.0003945,120]
[356426696,1742436632355,-73436.24496726,0.00039451,3]
[356426702,1742436632405,-615.14852654,0.00039451,3]
[356427426,1742436640062,-153.03017996,0.00024953,2]
[356427431,1742436640096,-299.96982004,0.00024953,2]
[356427433,1742436640106,-57227.31583915,0.00039451,3]
[356427746,1742436642899,-747.03246491,0.00039451,3]
[356427764,1742436643069,-1.1016134,0.00039451,3]
[356427796,1742436643377,-972.65693177,0.00039451,3]
[356429921,1742436665635,-298.77309953,0.00025299,120]
[356430373,1742436670203,-198.59968475,0.00025299,120]
[356430535,1742437468531,57760.0,0.00012,30]
[356430563,1742437754092,-349.54349663,0.00024456,2]
[356430564,1742437754114,-97.46629913,0.00025298,2]
[356430589,1742437832037,-300.0,0.00025298,2]
[356430590,1742437832047,-4228.59202268,0.00025299,30]
[356430591,1742437832092,-5771.40797732,0.00025299,30]
[356430592,1742437832102,-1676.49164775,0.00026,30]
[356430593,1742437832111,-211.74194324,0.000269,4]
[356430594,1742437832120,-418.0,0.00027398,2]
[356430595,1742437832130,-500.0,0.0003,3]
[356430596,1742437832138,-335.0,0.0003089,7]
[356430597,1742437832146,-258.6857253,0.00033446,2]
[356430598,1742437832154,-203.7929354,0.00033667,2]
[356430599,1742437832164,-182.473888,0.00034034,2]
[356430600,1742437832173,-182.473888,0.0003446,2]
[356430601,1742437832182,-175.3268491,0.00034475,2]
[356430602,1742437832191,-182.473888,0.00034885,2]
[356430603,1742437832200,-293.65,0.00035,30]
[356430604,1742437832209,-250.0,0.00035025,2]
[356430605,1742437832218,-182.473888,0.0003531,2]
[356430606,1742437832227,-182.473888,0.00035736,2]
[356430607,1742437832236,-833.92477148,0.00035753,2]
[356430609,1742437832245,-500.0,0.0003589,2]
[356430611,1742437832253,-177.38494749,0.000362,98]
[356430612,1742437832262,-3000.0,0.00038367,120]
[356430613,1742437832272,-398.4115956,0.00038467,4]
[356430614,1742437832281,-328.05195376,0.0003925,2]
[356430615,1742437832290,-328.05195372,0.00039275,2]
[356430616,1742437832299,-5000.0,0.000393,120]
[356430617,1742437832308,-328.05195372,0.000393,2]
[356430618,1742437832317,-328.05195372,0.00039325,2]
[356430619,1742437832328,-229.17558403,0.00039339,15]
[356430620,1742437832337,-162.65632148,0.00039339,15]
[356430621,1742437832346,-500.0,0.0003934,120]
[356430622,1742437832355,-504.11293332,0.0003934,120]
[356430623,1742437832364,-2000.0,0.0003934,2]
[356430624,1742437832374,-833.99388742,0.0003934,3]
[356430625,1742437832383,-417.94044697,0.0003934,3]
[356430626,1742437832392,-99765.24914,0.0003934,3]
[356430627,1742437832403,-328.05195372,0.0003935,2]
[356430628,1742437832412,-756.6434992,0.0003935,2]
[356430629,1742437832421,-500.0,0.0003935,20]
[356430630,1742437832430,-500.0,0.0003935,20]
[356430631,1742437832439,-6601.81265955,0.0003935,2]
[356430632,1742437832448,-1343.07172181,0.0003935,2]
[356430633,1742437832461,-25046.67588761,0.0003935,2]
[356430634,1742437832508,-106229.85503968,0.0003935,2]
[356430702,1742437846183,-500.0,0.00039249,15]
[356430705,1742437846192,-553.96816285,0.00039249,15]
[356430707,1742437846201,-500.0,0.00039249,15]
[356430709,1742437846211,-229.46358195,0.00039249,15]
[356430711,1742437846220,-3937.84121106,0.0003935,2]
[356430857,1742438963130,-273.26184001,0.000248,11]
[356430896,1742439032356,-26.73815999,0.000248,11]
[356430898,1742439032367,-10100.0,0.00025,30]
[356430900,1742439032378,-300.0,0.000263,12]
[356430903,1742439032388,-318.84458,0.000278,13]
[356430905,1742439032399,-160.0,0.00033962,2]
[356430907,1742439032408,-400.0,0.00034006,2]
[356430909,1742439032418,-21039.0696726,0.00034007,2]
[356430911,1742439032428,-494.67022938,0.0003467,7]
[356430913,1742439032437,-211.74194324,0.000349,7]
[356430915,1742439032447,-500.0,0.0003589,2]
[356430917,1742439032457,-198.62834246,0.00036018,2]
[356430919,1742439032467,-2188.5574578,0.00036118,2]
[356430921,1742439032477,-300.0,0.000365,2]
[356430923,1742439032488,-200.0,0.00038,120]
[356430925,1742439032499,-500.0,0.00038356,21]
[356430927,1742439032508,-4349.09582899,0.00038356,21]
[356430932,1742439032550,-432.48840375,0.00038356,21]
[356431009,1742439038149,-160.42290882,0.00038355,15]
[356431011,1742439038158,-528.89709118,0.00038356,21]
[356431022,1742439038255,-27878.3240936,0.00038356,21]
[356431244,1742439040367,-302.38100002,0.00038356,21]
[356431250,1742439040421,-683.91358246,0.00038356,21]
[356431252,1742439040432,-2043.28,0.00038356,21]
[356431254,1742439040441,-500.0,0.00038356,21]
[356431256,1742439040451,-3297.23,0.00038356,21]
[356431258,1742439040463,-500.0,0.00038356,21]
[356431260,1742439040471,-18864.39,0.00038356,21]
[356431262,1742439040481,-2548.56,0.00038356,21]
[356431264,1742439040491,-1314.86,0.00038356,21]
[356431266,1742439040500,-500.0,0.00038356,21]
[356431267,1742439040510,-532.37,0.00038356,21]
[356431269,1742439040519,-500.0,0.00038356,21]
[356431271,1742439040528,-602.56034755,0.00038356,21]
[356431273,1742439040538,-3971.18,0.00038356,21]
[356431275,1742439040547,-500.0,0.00038356,21]
[356431277,1742439040556,-1343.89,0.00038356,21]
[356431278,1742439040566,-700.31,0.00038356,21]
[356431280,1742439040577,-500.0,0.00038356,21]
[356431282,1742439040586,-500.0,0.00038356,21]
[356431284,1742439040596,-763.91,0.00038356,21]
[356431286,1742439040606,-11433.76,0.00038356,21]
[356431288,1742439040616,-500.0,0.00038356,21]
[356431290,1742439040625,-674.0,0.00038356,31]
[356431292,1742439040635,-674.0,0.00038356,31]
[356431294,1742439040644,-674.0,0.00038356,31]
[356431295,1742439040653,-674.0,0.00038356,31]
[356431297,1742439040663,-674.0,0.00038356,31]
[356431299,1742439040674,-674.0,0.00038356,31]
[356431301,1742439040684,-674.0,0.00038356,31]
[356431303,1742439040693,-674.0,0.00038356,31]
[356431305,1742439040703,-674.0,0.00038356,31]
[356431307,1742439040713,-291.09898578,0.00038356,31]
[356431471,1742439043258,-382.90101422,0.00038356,31]
[356431472,1742439043267,-674.0,0.00038356,31]
[356431473,1742439043277,-674.0,0.00038356,31]
[356431474,1742439043288,-674.0,0.00038356,31]
[356431475,1742439043298,-1037.0,0.00038356,31]
[356431476,1742439043308,-84.09898628,0.00038356,31]
[356431477,1742439043320,-952.90101372,0.00038356,31]
[356431478,1742439043329,-1037.0,0.00038356,31]
[356431479,1742439043339,-917.88554048,0.00038356,31]
[356431523,1742439046252,-119.11445952,0.00038356,31]
[356431524,1742439046262,-1037.0,0.00038356,31]
[356431525,1742439046271,-1037.0,0.00038356,31]
[356431526,1742439046280,-1037.0,0.00038356,31]
[356431527,1742439046290,-1037.0,0.00038356,31]
[356431528,1742439046300,-1037.0,0.00038356,31]
[356431529,1742439046309,-1037.0,0.00038356,31]
[356431530,1742439046319,-1037.0,0.00038356,31]
[356431531,1742439046328,-1037.0,0.00038356,31]
[356431532,1742439046338,-1037.0,0.00038356,31]
[356431533,1742439046347,-1037.0,0.00038356,31]
[356431534,1742439046356,-453.31480944,0.00038356,31]
[356431535,1742439046376,-583.68519056,0.00038356,31]
[356431536,1742439046385,-1016.31480944,0.00038356,31]
[356432217,1742440220208,-150.0,0.00024211,2]
[356432259,1742440232468,-1237.61671764,0.00024211,2]
[356432261,1742440232478,-500.0,0.0003589,2]
[356432263,1742440232490,-623.16220398,0.00036215,2]
[356432265,1742440232500,-1135.657081,0.00037178,30]
[356432267,1742440232510,-158.9563301,0.00037178,30]
[356432269,1742440232521,-187.0368658,0.00037178,30]
[356432270,1742440232531,-5145.22747431,0.000375,40]
[356432272,1742440232540,-317.07,0.00038,7]
[356432274,1742440232550,-1000.0,0.000382,50]
[356432276,1742440232560,-3027.79846847,0.00038246,120]
[356432278,1742440232569,-6189.43895,0.00038345,14]
[356432280,1742440232579,-671.53586091,0.00038345,2]
[356432283,1742440232588,-17910.68010794,0.00038345,2]
[356432285,1742440232598,-21994.16376131,0.00038346,3]
[356432424,1742440240624,-822.26868025,0.00038346,3]
[356432426,1742440240636,-86086.0,0.00038346,3]
[356432741,1742440243611,-5739.38691895,0.00038346,3]
[356433013,1742440246435,-93656.2628669,0.00038346,3]
[356433269,1742441432627,-276.73606763,0.00023822,2]
[356433271,1742441432637,-179.3,0.000248,15]
[356433273,1742441432646,-250.0,0.00032725,2]
[356433275,1742441432656,-1335.29698,0.00032772,2]
[356433277,1742441432666,-227.8490047,0.00032817,2]
[356433279,1742441432675,-3433.4687862,0.00034028,2]
[356433281,1742441432686,-266.53984668,0.000349,7]
[356433283,1742441432695,-400.0,0.0003525,2]
[356433285,1742441432704,-1401.2861095,0.00035251,2]
[356433287,1742441432713,-1914.6620467,0.00035478,2]
[356433289,1742441432723,-500.0,0.0003589,2]
[356433291,1742441432732,-500.0,0.00036948,15]
[356433293,1742441432742,-500.0,0.00036948,15]
[356433295,1742441432751,-500.0,0.00036948,15]
[356433297,1742441432760,-500.0,0.00036948,15]
[356433299,1742441432769,-500.0,0.00036948,15]
[356433301,1742441432779,-250.60108312,0.00036948,15]
[356433303,1742441432789,-45072.56,0.00036949,2]
[356433305,1742441432798,-14872.7123774,0.00037275,3]
[356433307,1742441432808,-201.96308614,0.00037284,15]
[356433309,1742441432818,-500.0,0.00037284,15]
[356433311,1742441432828,-175.37329699,0.00037284,15]
[356433313,1742441432840,-68911.62261243,0.00037285,8]
[356433418,1742441438496,-500.0,0.00037284,60]
[356433420,1742441438506,-500.0,0.00037284,60]
[356433422,1742441438516,-500.0,0.00037284,60]
[356433424,1742441438525,-500.0,0.00037284,60]
[356433426,1742441438535,-155.4,0.00037284,60]
[356433479,1742441440700,-344.6,0.00037284,60]
[356433480,1742441440709,-500.0,0.00037284,60]
[356433481,1742441440719,-500.0,0.00037284,60]
[356433482,1742441440728,-500.0,0.00037284,60]
[356433483,1742441440738,-500.0,0.00037284,60]
[356433484,1742441440747,-508.73143722,0.00037284,60]
[356433485,1742441440757,-17635.79638667,0.00037285,8]
[356433486,1742441440767,-250.57590864,0.00037301,2]
[356433487,1742441440776,-157.151444,0.00037377,2]
[356433488,1742441440786,-835.11200367,0.00037404,2]
[356433489,1742441440795,-250.57590862,0.00037537,2]
[356433490,1742441440805,-14872.7123774,0.00037763,3]
[356433491,1742441440814,-250.57590862,0.00037774,2]
[356433492,1742441440823,-835.11200367,0.00037782,2]
[356433493,1742441440833,-560.0,0.00037786,2]
[356433494,1742441440844,-835.11200367,0.00037978,2]
[356433495,1742441440853,-5000.0,0.00038,120]
[356433496,1742441440862,-250.57590862,0.0003801,2]
[356433497,1742441440871,-347.2243702,0.0003818,4]
[356433498,1742441440881,-151.0,0.000382,14]
[356433499,1742441440892,-1000.0,0.000382,60]
[356433500,1742441440901,-835.11200367,0.00038224,2]
[356433501,1742441440910,-250.57590862,0.00038246,2]
[356433502,1742441440922,-29745.4247547,0.00038334,3]
[356433503,1742441440932,-3298.70285017,0.00038335,2]
[356433504,1742441440941,-8955.34005397,0.00038335,2]
[356433505,1742441440951,-59490.8495095,0.00038336,3]
[356433506,1742441440960,-265.584538,0.00038336,14]
[356433507,1742441440970,-151.0,0.00038344,14]
[356433508,1742441440980,-65393.4175035,0.00038344,30]
[356433509,1742441440989,-191.06351483,0.00038345,15]
[356433510,1742441440999,-93419.66712296,0.00038346,3]
[356433511,1742441441011,-10689.31951904,0.00038346,3]
[356433512,1742441441020,-192.88799546,0.00038346,3]
[356433513,1742441441030,-5000.0,0.00038346,10]
[356433514,1742441441039,-2500.0,0.0003835,120]
[356433515,1742441441049,-317.0,0.00038351,14]
[356433516,1742441441058,-354.0,0.00038351,14]
[356433517,1742441441068,-317.0,0.00038351,14]
[356433518,1742441441077,-354.0,0.00038351,14]
[356433519,1742441441087,-354.0,0.00038351,14]
[356433520,1742441441096,-317.0,0.00038351,14]
[356433521,1742441441105,-354.0,0.00038351,14]
[356433522,1742441441115,-317.0,0.00038351,14]
[356433523,1742441441124,-354.0,0.00038351,14]
[356433524,1742441441133,-317.0,0.00038351,14]
[356433525,1742441441143,-354.0,0.00038351,14]
[356433526,1742441441152,-317.0,0.00038351,14]
[356433527,1742441441161,-317.0,0.00038351,14]
[356433528,1742441441171,-354.0,0.00038351,14]
[356433529,1742441441180,-317.0,0.00038351,14]
[356433530,1742441441190,-354.0,0.00038351,14]
[356433531,1742441441199,-354.0,0.00038351,14]
[356433532,1742441441208,-317.0,0.00038351,14]
[356433533,1742441441217,-354.0,0.00038351,14]
[356433534,1742441441227,-317.0,0.00038351,14]
[356433535,1742441441236,-354.0,0.00038351,14]
[356433536,1742441441245,-317.0,0.00038351,14]
[356433537,1742441441255,-362.00497026,0.00038351,14]
[356433538,1742441441264,-317.0,0.00038351,14]
[356433539,1742441441274,-317.0,0.00038351,14]
[356433540,1742441441283,-428.70342401,0.00038351,14]
[356433541,1742441441293,-1000.0,0.00038355,120]
[356433542,1742441441303,-1000.0,0.00038355,120]
[356433543,1742441441312,-1000.0,0.00038355,120]
[356433544,1742441441322,-1000.0,0.00038355,120]
[356433545,1742441441331,-1000.0,0.00038355,120]
[356433546,1742441441341,-1000.0,0.00038355,120]
[356433547,1742441441351,-1000.0,0.00038355,120]
[356433548,1742441441360,-1000.0,0.00038355,120]
[356433549,1742441441370,-1000.0,0.00038355,120]
[356433551,1742441441379,-1000.0,0.00038355,120]
[356433552,1742441441388,-151.98207343,0.00038355,120]
[356433554,1742441441398,-507.65793981,0.00038356,21]
[356433556,1742441441407,-508.67546877,0.00038356,21]
[356433558,1742441441416,-500.0,0.00038356,21]
[356433560,1742441441426,-500.0,0.00038356,21]
[356433562,1742441441436,-500.0,0.00038356,21]
[356433565,1742441441446,-500.0,0.00038356,21]
[356433566,1742441441457,-500.0,0.00038356,21]
[356433568,1742441441467,-500.0,0.00038356,21]
[356433571,1742441441476,-500.0,0.00038356,21]
[356433573,1742441441485,-500.0,0.00038356,21]
[356433575,1742441441495,-269.97782231,0.00038356,21]
[356433577,1742441441504,-500.0,0.00038356,21]
[356433579,1742441441515,-516.94293592,0.00038356,21]
[356433581,1742441441524,-500.0,0.00038356,21]
[356433583,1742441441533,-500.0,0.00038356,21]
[356433585,1742441441543,-500.0,0.00038356,21]
[356433587,1742441441552,-500.0,0.00038356,21]
[356433611,1742441441774,-500.0,0.00038356,21]
[356433613,1742441441787,-500.0,0.00038356,21]
[356433615,1742441441796,-503.17090904,0.00038356,21]
[356433617,1742441441806,-500.0,0.00038356,21]
[356433619,1742441441816,-500.0,0.00038356,21]
[356433621,1742441441825,-500.0,0.00038356,21]
[356433623,1742441441836,-759.86978624,0.00038356,21]
[356433625,1742441441849,-500.0,0.00038356,21]
[356433626,1742441441859,-500.0,0.00038356,21]
[356433627,1742441441868,-500.0,0.00038356,21]
[356433628,1742441441877,-500.0,0.00038356,21]
[356433629,1742441441889,-500.0,0.00038356,21]
[356433630,1742441441898,-500.0,0.00038356,21]
[356433631,1742441441908,-500.0,0.00038356,21]
[356433632,1742441441919,-530.82131684,0.00038356,21]
[356433633,1742441441928,-500.0,0.00038356,21]
[356433634,1742441441938,-500.0,0.00038356,21]
[356433635,1742441441947,-500.0,0.00038356,21]
[356433636,1742441441957,-500.0,0.00038356,21]
[356433637,1742441441967,-500.0,0.00038356,21]
[356433638,1742441441977,-848.4,0.00038356,21]
[356433639,1742441441987,-500.0,0.00038356,21]
[356433640,1742441441996,-500.0,0.00038356,21]
[356433641,1742441442006,-500.0,0.00038356,21]
[356433642,1742441442015,-500.0,0.00038356,21]
[356433643,1742441442024,-500.0,0.00038356,21]
[356433644,1742441442034,-500.0,0.00038356,21]
[356433645,1742441442044,-500.0,0.00038356,21]
[356433646,1742441442053,-500.0,0.00038356,21]
[356433647,1742441442063,-500.0,0.00038356,21]
[356433648,1742441442072,-500.0,0.00038356,21]
[356433649,1742441442081,-1604.12,0.00038356,21]
[356433650,1742441442090,-500.0,0.00038356,21]
[356433651,1742441442100,-500.0,0.00038356,21]
[356433652,1742441442109,-500.0,0.00038356,21]
[356433653,1742441442118,-500.0,0.00038356,21]
[356433654,1742441442127,-500.0,0.00038356,21]
[356433655,1742441442136,-500.0,0.00038356,21]
[356433656,1742441442146,-408.35043155,0.00038356,21]
[356433657,1742441442155,-500.0,0.00038356,21]
[356433658,1742441442165,-829.56,0.00038356,21]